bitfinex-derivatives/quotes_SOLF0:USTF0_20241206
["timestamp","ask_amount","ask_price","bid_price","bid_amount"]
[1733476050463,5.90283301,236.91,236.9,2.12]
[1733476051855,5.90283301,236.91,236.82,2.3524]
[1733476051856,5.90283301,236.91,236.84,2.1095]
[1733476052058,4.6586,237.02,236.85,2.12]
[1733476052262,5.90283301,236.87,236.85,2.12]
[1733476052465,5.90283301,236.87,236.86,2.1092]
[1733476052764,5.90283301,236.87,236.81,2.12]
[1733476053262,2.1089,236.91,236.81,2.12]
[1733476053466,4.6586,237.02,236.81,2.12]
[1733476053668,5.90283301,236.87,236.81,2.12]
[1733476053866,5.90283301,236.87,236.82,4.25448734]
[1733476054355,5.90283301,236.87,236.83,2.1095]
[1733476054557,5.90283301,236.85,236.82,4.25448734]
[1733476054965,5.90283301,236.85,236.84,2.1095]
[1733476056858,5.90283301,236.85,236.7,17.52887859]
[1733476057055,4.6586,237.02,236.69,46.74367625]
[1733476057056,5.90283301,236.78,236.73,2.12]
[1733476057264,2.312,236.91,236.74,2.4278]
[1733476057466,5.90283301,236.78,236.75,4.13061765]
[1733476057670,5.90283301,236.83,236.74,8.33063301]
[1733476057867,5.90283301,236.81,236.75,6.47263371]
[1733476058171,2.312,237.0,236.79,2.1099]
[1733476058470,14.962,237.0,236.8,2.12]
[1733476058668,2.1093,236.87,236.8,2.12]
[1733476059162,2.1093,236.87,236.79,2.1099]
[1733476059471,5.90283301,236.8,236.79,2.1099]
[1733476059770,5.90283301,236.8,236.79,4.2299]
[1733476060865,5.90283301,236.8,236.79,2.1]
[1733476061271,5.90283301,236.8,236.74,2.4278]
[1733476061469,5.90283301,236.76,236.74,2.4278]
[1733476061763,5.90283301,236.76,236.69,2.32]
[1733476061970,5.90283301,236.71,236.7,2.1107]
[1733476062667,1.4262,236.87,236.71,2.1106]
[1733476062868,1.4262,236.87,236.7,2.32]
[1733476063068,5.90283301,236.76,236.7,6.56644159]
[1733476063269,5.90283301,236.76,236.7,2.32]
[1733476063464,5.90283301,236.76,236.74,2.1104]
[1733476064072,5.90283301,236.76,236.75,2.32]
[1733476064272,5.90283301,236.76,236.75,4.4303]
[1733476064767,1.4262,236.87,236.77,2.1101]
[1733476064969,2.1095,236.85,236.75,2.32]
[1733476065170,5.90283301,236.79,236.75,2.32]
[1733476065675,5.90283301,236.79,236.76,2.1102]
[1733476065873,5.90283301,236.79,236.75,2.32]
[1733476066571,2.296,236.88,236.75,8.22283301]
[1733476066770,2.32,236.97,236.75,2.32]
[1733476067076,5.90283301,236.83,236.76,2.3825]
[1733476067874,2.32,236.97,236.76,6.56402888]
[1733476068172,5.90283301,236.83,236.82,2.1096]
[1733476068379,1.4277,237.0,236.82,2.32]
[1733476068576,2.1086,236.95,236.88,2.1091]
[1733476068879,1.4277,237.0,236.89,2.32]
[1733476069678,2.1084,236.96,236.91,2.1089]
[1733476069875,5.90283301,236.92,236.91,2.1089]
[1733476071381,5.90283301,236.92,236.9,2.109]
[1733476071580,5.90283301,236.91,236.89,2.32]
[1733476072787,5.90283301,236.91,236.9,2.109]
[1733476072988,5.90283301,236.91,236.89,2.32]
[1733476073388,5.90283301,236.91,236.89,4.4291]
[1733476074084,5.90283301,236.91,236.89,2.32]
[1733476075886,5.90283301,236.91,236.76,4.768]
[1733476076190,5.90283301,236.85,236.84,2.1094]
[1733476076383,5.90283301,236.85,236.79,2.32]
[1733476076580,2.32,236.98,236.79,2.32]
[1733476076581,5.90283301,236.8,236.79,2.32]
[1733476077385,5.90283301,236.8,236.77,2.1101]
[1733476077587,2.32,236.92,236.78,2.32]
[1733476077790,2.1098,236.82,236.78,2.32]
[1733476078194,2.32,236.92,236.78,2.32]
[1733476078390,2.32,236.92,236.79,2.1099]
[1733476078693,5.90283301,236.8,236.79,2.1099]
[1733476079293,2.3156,236.91,236.85,2.1094]
[1733476079593,5.90283301,236.86,236.85,4.4294]
[1733476080285,5.90283301,236.86,236.85,2.32]
[1733476084993,2.1099,236.8,236.76,2.32]
[1733476085197,14.97,236.94,236.76,2.32]
[1733476085198,5.90283301,236.78,236.76,2.32]
[1733476085895,5.90283301,236.8,236.67,5.84295953]
[1733476086100,5.90283301,236.76,236.68,2.32]
[1733476086295,5.90283301,236.76,236.68,7.1514]
[1733476086995,5.90283301,236.76,236.71,2.1106]
[1733476087295,5.90283301,236.73,236.66,2.32]
[1733476087496,2.32,236.82,236.67,2.32]
[1733476087793,2.32,236.84,236.67,2.32]
[1733476088000,5.90283301,236.75,236.73,2.1104]
[1733476088194,4.7219,236.87,236.73,2.32]
[1733476088402,5.90283301,236.77,236.73,2.32]
[1733476088993,5.90283301,236.75,236.73,2.32]
[1733476089896,5.90283301,236.75,236.72,2.32]
[1733476090502,5.90283301,236.75,236.72,4.4305]
[1733476090694,5.90283301,236.75,236.72,2.32]
[1733476091799,5.90283301,236.77,236.73,2.1105]
[1733476091999,2.4019,236.87,236.72,2.32]
[1733476092201,5.90283301,236.8,236.73,4.1270659]
[1733476092502,5.90283301,236.8,236.78,2.11]
[1733476092702,5.90283301,236.8,236.79,2.32]
[1733476094401,5.90283301,236.82,236.8,2.1098]
[1733476094905,5.90283301,236.82,236.79,2.32]
[1733476095205,5.90283301,236.8,236.79,2.32]
[1733476096695,5.90283301,236.8,236.73,4.6387]
[1733476096896,2.32,236.92,236.74,4.4304]
[1733476096897,5.90283301,236.77,236.74,4.4304]
[1733476097702,5.90283301,236.77,236.74,2.32]
[1733476097915,2.32,236.92,236.74,2.32]
[1733476098207,5.90283301,236.79,236.74,2.32]
[1733476098406,5.90283301,236.79,236.76,2.1101]
[1733476098902,0.0708,236.93,236.74,2.32]
[1733476099109,5.90283301,236.81,236.74,8.22283301]
[1733476099609,5.90283301,236.81,236.75,2.4677]
[1733476099906,5.90283301,236.81,236.78,2.11]
[1733476100108,5.90283301,236.81,236.75,2.4677]
[1733476100504,5.90283301,236.81,236.79,2.1099]
[1733476100702,2.1094,236.86,236.76,8.22283301]
[1733476101010,2.32,237.08,236.84,5.90283301]
[1733476101211,5.90283301,236.93,236.87,2.1092]
[1733476101403,5.90283301,236.93,236.88,2.32]
[1733476101606,2.32,237.02,236.88,2.32]
[1733476101810,5.90283301,236.91,236.89,2.109]
[1733476102013,9.23815709,236.95,236.88,2.32]
[1733476102210,9.23815709,236.91,236.88,2.32]
[1733476102607,9.23815709,236.94,236.88,2.32]
[1733476102807,9.23815709,236.91,236.88,2.32]
[1733476103003,9.23815709,236.91,236.86,2.32]
[1733476103409,9.23815709,236.91,236.85,4.7877]
[1733476103807,9.23815709,236.94,236.85,4.7877]
[1733476104907,9.23815709,236.94,236.87,2.1092]
[1733476105414,11.34705709,236.91,236.86,2.1093]
[1733476105613,9.23815709,236.91,236.85,2.32]
[1733476106111,9.23815709,236.91,236.79,2.4706]
[1733476106317,2.32,236.96,236.79,2.4706]
[1733476106318,9.23815709,236.85,236.8,2.32]
[1733476106717,9.23815709,236.85,236.8,4.4298]
[1733476107516,11.34755709,236.85,236.8,4.4298]
[1733476108214,11.34755709,236.85,236.8,2.32]
[1733476108617,11.34755709,236.85,236.79,4.5805]
[1733476109010,9.23815709,236.85,236.79,2.4706]
[1733476109210,9.23815709,236.85,236.8,2.1098]
[1733476109915,9.23815709,236.85,236.81,2.1097]
[1733476110216,9.23815709,236.85,236.79,2.4706]
[1733476110413,9.23815709,236.85,236.83,2.1096]
[1733476110614,9.23815709,236.85,236.79,2.4706]
[1733476110918,11.34725709,236.88,236.79,2.4706]
[1733476112319,2.1092,236.87,236.81,2.1098]
[1733476112722,9.23815709,236.88,236.79,2.4706]
[1733476113021,2.1092,236.87,236.82,2.1097]
[1733476114222,2.1092,236.87,236.81,2.1098]
[1733476115821,2.1093,236.86,236.81,2.1098]
[1733476116218,9.23815709,236.88,236.81,2.1098]
[1733476116515,2.1092,236.87,236.81,2.1098]
[1733476116916,9.23815709,236.88,236.79,2.4706]
[1733476117921,11.34725709,236.88,236.81,2.1097]
[1733476118113,9.23815709,236.88,236.79,2.4706]
[1733476118519,9.23815709,236.91,236.79,2.4706]
[1733476119117,11.34705709,236.91,236.79,2.4706]
[1733476119324,9.23815709,236.91,236.79,2.4706]
[1733476119620,9.23815709,237.0,236.79,2.4706]
[1733476119621,9.23815709,236.94,236.79,2.4706]
[1733476119924,9.23815709,236.97,236.84,9.23815709]
[1733476120226,9.23815709,236.97,236.85,7.0757]
[1733476120416,9.23815709,236.97,236.85,11.40225922]
[1733476120618,2.1084,236.96,236.9,2.1089]
[1733476120920,9.23815709,236.97,236.91,2.32]
[1733476121129,11.34655709,236.97,236.91,2.32]
[1733476121927,9.23815709,236.97,236.91,2.32]
[1733476122615,0.0787,237.09,236.91,2.32]
[1733476122616,9.23815709,237.0,236.91,2.32]
[1733476122815,9.23815709,237.03,236.92,2.4285]
[1733476123020,9.23815709,237.03,236.97,2.1083]
[1733476123223,9.23815709,237.03,236.98,2.26]
[1733476123619,9.23815709,237.03,236.98,4.3682]
[1733476123827,9.23815709,237.03,236.98,2.26]
[1733476124426,9.23815709,237.03,237.0,2.1081]
[1733476125924,9.23815709,237.06,237.01,2.108]
[1733476128229,9.23815709,237.02,236.98,2.26]
[1733476128430,9.23815709,236.99,236.94,2.26]
[1733476128628,9.23815709,236.96,236.94,2.26]
[1733476129432,11.34655709,236.96,236.94,2.26]
[1733476129631,11.34655709,236.96,236.86,2.3585]
[1733476129632,9.23815709,236.96,236.86,2.3585]
[1733476129933,9.23815709,236.91,236.87,2.26]
[1733476130233,9.23815709,236.91,236.88,2.1091]
[1733476130436,9.23815709,236.91,236.79,4.14648528]
[1733476130736,9.23815709,236.91,236.81,2.26]
[1733476132231,9.23815709,236.91,236.87,2.1092]
[1733476132427,9.23815709,236.91,236.88,2.26]
[1733476139136,9.23815709,236.94,236.89,2.109]
[1733476139541,9.23815709,236.94,236.88,2.26]
[1733476139936,9.23815709,236.94,236.89,2.1091]
[1733476141441,2.1086,236.95,236.9,2.1089]
[1733476142544,2.1086,236.95,236.88,2.26]
[1733476142745,2.1087,236.94,236.89,2.109]
[1733476143136,9.23815709,236.94,236.88,2.26]
[1733476143345,2.1088,236.92,236.88,2.26]
[1733476143548,9.23815709,236.94,236.88,2.26]
[1733476143750,9.23815709,236.91,236.8,4.737]
[1733476143943,9.23815709,236.87,236.81,2.26]
[1733476144345,2.1094,236.85,236.81,2.26]
[1733476146247,2.1096,236.83,236.81,2.26]
[1733476146450,9.23815709,236.84,236.76,2.26]
[1733476146651,9.23815709,236.78,236.61,5.84295953]
[1733476146844,9.23815709,236.78,236.63,2.4129]
[1733476147051,9.23815709,236.78,236.64,2.26]
[1733476147349,2.26,236.84,236.64,2.26]
[1733476147350,9.23815709,236.75,236.64,2.26]
[1733476147543,9.23815709,236.75,236.65,2.1111]
[1733476147746,9.23815709,236.75,236.64,2.26]
[1733476148242,11.34845709,236.75,236.67,2.111]
[1733476148552,9.23815709,236.75,236.64,2.26]
[1733476148753,9.23815709,236.72,236.64,2.26]
[1733476149149,9.23815709,236.69,236.51,5.84295953]
[1733476149343,9.23815709,236.69,236.56,6.38532188]
[1733476149550,2.26,236.73,236.57,2.26]
[1733476149551,9.23815709,236.66,236.57,2.26]
[1733476149855,9.23815709,236.69,236.57,6.47721052]
[1733476150052,9.23815709,236.69,236.57,2.26]
[1733476150247,9.23815709,236.66,236.53,2.3799]
[1733476150550,9.23815709,236.69,236.54,11.49815709]
[1733476150945,9.23815709,236.69,236.59,2.1117]
[1733476151144,9.23815709,236.69,236.6,2.26]
[1733476152154,11.49585709,236.72,236.6,2.26]
[1733476152355,9.23815709,236.72,236.59,4.1736862]
[1733476152555,9.23815709,236.72,236.6,2.24]
[1733476152751,9.23815709,236.72,236.66,2.1111]
[1733476153054,9.23815709,236.75,236.67,2.24]
[1733476153254,11.50105709,236.78,236.68,2.24]
[1733476153653,9.23815709,236.78,236.68,2.24]
[1733476153949,9.23815709,236.81,236.68,2.24]
[1733476154350,9.23815709,236.78,236.68,2.24]
[1733476154750,11.34815709,236.78,236.71,2.1106]
[1733476155251,9.23815709,236.78,236.71,2.1106]
[1733476155450,9.23815709,236.78,236.68,2.24]
[1733476155854,9.23815709,236.81,236.68,2.24]
[1733476156259,11.34795709,236.81,236.68,2.24]
[1733476157553,9.23815709,236.81,236.68,2.24]
[1733476158455,9.23815709,236.81,236.77,2.1101]
[1733476158650,9.23815709,236.81,236.78,2.24]
[1733476160053,2.1099,236.8,236.78,2.24]
[1733476161153,9.23815709,236.81,236.73,2.24]
[1733476161352,9.23815709,236.74,236.73,2.24]
[1733476161946,9.23815709,236.74,236.64,4.2622567]
[1733476162152,9.23815709,236.74,236.63,2.3188]
[1733476162153,9.23815709,236.74,236.65,2.24]
[1733476162346,9.23815709,236.74,236.63,2.3188]
[1733476162548,9.23815709,236.71,236.65,2.1111]
[1733476162750,9.23815709,236.71,236.66,2.24]
[1733476163349,9.23815709,236.74,236.66,2.24]
[1733476163756,9.23815709,236.77,236.66,2.24]
[1733476163953,9.23815709,236.77,236.73,2.1104]
[1733476164257,9.23815709,236.77,236.63,11.55695709]
[1733476164258,9.23815709,236.8,236.74,2.24]
[1733476164458,9.23815709,236.8,236.75,4.3503]
[1733476164947,2.11,236.79,236.75,2.24]
[1733476165150,9.23815709,236.77,236.75,2.24]
[1733476167252,9.23815709,236.77,236.7,4.12049076]
[1733476167253,9.23815709,236.77,236.7,2.24]
[1733476167453,9.23815709,236.74,236.7,2.24]
[1733476168251,2.1105,236.73,236.7,2.24]
[1733476168459,9.23815709,236.74,236.63,2.3188]
[1733476168657,9.23815709,236.74,236.64,2.24]
[1733476168861,9.23815709,236.74,236.67,2.111]
[1733476169051,9.23815709,236.71,236.64,2.24]
[1733476169256,2.1109,236.69,236.64,2.24]
[1733476170257,2.1109,236.68,236.64,2.24]
[1733476170458,9.23815709,236.67,236.64,2.24]
[1733476170859,2.1111,236.66,236.64,2.24]
[1733476172558,9.23815709,236.67,236.56,2.4243]
[1733476172756,9.23815709,236.67,236.57,2.24]
[1733476173163,2.1111,236.66,236.59,2.1116]
[1733476173657,2.1112,236.65,236.59,2.1116]
[1733476174160,9.23815709,236.63,236.57,4.3518]
[1733476174355,9.23815709,236.63,236.57,2.24]
[1733476174559,9.23815709,236.63,236.58,2.1118]
[1733476174763,9.23815709,236.63,236.59,2.24]
[1733476175065,9.23815709,236.63,236.59,4.3516]
[1733476175562,9.23815709,236.63,236.59,2.24]
[1733476176161,9.23815709,236.63,236.59,4.3516]
[1733476176360,9.23815709,236.63,236.56,2.4243]
[1733476176672,9.23815709,236.63,236.57,2.24]
[1733476177460,9.23815709,236.63,236.58,2.1117]
[1733476177860,9.23815709,236.63,236.59,2.24]
[1733476178862,2.1115,236.62,236.59,2.24]
[1733476179064,9.23815709,236.63,236.59,2.24]
[1733476179264,9.23815709,236.66,236.59,2.24]
[1733476180258,11.34935709,236.66,236.6,2.1116]
[1733476181368,2.1115,236.63,236.59,2.24]
[1733476183762,9.23815709,236.66,236.59,2.24]
[1733476184469,9.23815709,236.66,236.61,2.1115]
[1733476185460,11.34925709,236.66,236.61,2.1115]
[1733476185859,11.34925709,236.66,236.62,2.28]
[1733476186372,9.23815709,236.66,236.62,2.28]
[1733476186668,11.34935709,236.66,236.62,2.28]
[1733476187462,9.23815709,236.66,236.62,2.28]
[1733476188174,11.34925709,236.66,236.62,2.28]
[1733476189169,2.1113,236.64,236.62,2.28]
[1733476189470,9.23815709,236.66,236.62,2.28]
[1733476189670,2.1113,236.64,236.62,2.28]
[1733476190870,9.23815709,236.63,236.5,5.84295953]
[1733476191069,9.23815709,236.54,236.42,5.84295953]
[1733476191269,9.23815709,236.54,236.41,2.2217]
[1733476191472,9.23815709,236.54,236.45,2.1129]
[1733476191775,9.23815709,236.54,236.46,2.28]
[1733476192374,9.23815709,236.54,236.47,2.28]
[1733476192771,9.23815709,236.57,236.47,2.28]
[1733476193373,11.35005709,236.57,236.49,2.1126]
[1733476193872,11.35005709,236.57,236.47,2.28]
[1733476194279,11.35005709,236.57,236.49,2.1126]
[1733476194979,11.35005709,236.57,236.48,2.1127]
[1733476195575,2.1125,236.51,236.43,2.1131]
[1733476195772,9.23815709,236.54,236.44,2.28]
[1733476196371,9.23815709,236.54,236.41,6.45017442]
[1733476196372,9.23815709,236.54,236.45,2.28]
[1733476197476,9.23815709,236.51,236.45,2.28]
[1733476199078,11.35065709,236.51,236.45,2.28]
[1733476200381,18.47631418,236.46,236.3,22.77043812]
[1733476200586,4.2231,236.62,236.22,5.84295953]
[1733476200587,115.0,236.61,236.22,5.84295953]
[1733476200775,115.0,236.61,236.23,4.7823]
[1733476200776,9.23815709,236.34,236.23,4.7823]
[1733476200988,11.35215709,236.34,236.25,2.1147]
[1733476201177,9.23815709,236.26,236.13,5.84295953]
[1733476201381,9.23815709,236.4,236.12,11.51815709]
[1733476201382,2.28,236.36,236.12,11.51815709]
[1733476201582,9.23815709,236.29,236.12,15.69982631]
[1733476201777,9.23815709,236.29,236.12,6.46166922]
[1733476202084,1.0,236.5,236.13,9.23815709]
[1733476202280,9.23815709,236.32,236.13,9.23815709]
[1733476202688,9.23815709,236.32,236.26,2.1146]
[1733476202884,9.23815709,236.4,236.23,4.14611297]
[1733476203084,9.23815709,236.31,236.24,2.28]
[1733476203387,9.23815709,236.31,236.25,2.28]
[1733476203688,9.23815709,236.35,236.26,4.5751]
[1733476203888,9.23815709,236.35,236.29,2.1144]
[1733476204089,9.23815709,236.35,236.3,2.28]
[1733476205381,9.23815709,236.35,236.26,6.6898]
[1733476205585,9.23815709,236.35,236.27,2.28]
[1733476206390,9.23815709,236.4,236.27,2.28]
[1733476207291,9.23815709,236.4,236.26,4.5751]
[1733476207490,9.23815709,236.4,236.27,2.28]
[1733476207790,9.23815709,236.4,236.32,2.1141]
[1733476207990,9.23815709,236.4,236.33,2.28]
[1733476208388,9.23815709,236.35,236.33,2.28]
[1733476209689,9.23815709,236.35,236.34,2.28]
[1733476212187,9.23815709,236.39,236.34,2.32]
[1733476212588,9.23815709,236.39,236.26,4.5751]
[1733476212790,9.23815709,236.39,236.27,2.32]
[1733476213494,9.23815709,236.39,236.33,2.114]
[1733476213695,9.23815709,236.39,236.34,2.32]
[1733476213891,9.23815709,236.52,236.34,2.32]
[1733476214195,9.23815709,236.42,236.34,2.32]
[1733476215094,2.32,236.51,236.38,2.1136]
[1733476215293,9.23815709,236.45,236.39,2.32]
[1733476215996,11.35115709,236.45,236.39,2.32]
[1733476216897,9.23815709,236.45,236.39,2.32]
[1733476217092,9.23815709,236.48,236.39,2.32]
[1733476217297,11.35085709,236.48,236.39,4.4334]
[1733476217499,9.23815709,236.48,236.39,2.32]
[1733476218598,9.23815709,236.44,236.39,2.32]
[1733476219095,11.35125709,236.44,236.39,2.32]
[1733476219296,9.23815709,236.41,236.33,4.5996]
[1733476219489,9.23815709,236.41,236.36,2.32]
[1733476220199,11.35155709,236.41,236.36,2.32]
[1733476220497,9.23815709,236.41,236.36,2.32]
[1733476221192,9.23815709,236.44,236.36,2.32]
[1733476221399,9.23815709,236.44,236.38,2.1136]
[1733476221897,9.23815709,236.44,236.36,2.32]
[1733476222296,9.23815709,236.44,236.4,2.1134]
[1733476222495,9.23815709,236.44,236.41,2.32]
[1733476225096,9.23815709,236.47,236.41,4.4333]
[1733476225591,9.23815709,236.47,236.41,2.32]
[1733476226101,9.23815709,236.47,236.42,2.32]
[1733476227098,9.23815709,236.47,236.42,4.4332]
[1733476227302,9.23815709,236.47,236.42,2.32]
[1733476228000,9.23815709,236.54,236.42,2.32]
[1733476228304,9.23815709,236.54,236.48,2.1127]
[1733476228601,9.23815709,236.54,236.37,9.23815709]
[1733476228602,9.23815709,236.51,236.35,5.84295953]
[1733476228897,2.32,236.5,236.31,4.28507081]
[1733476229105,2.32,236.5,236.29,4.5503]
[1733476229401,9.23815709,236.38,236.29,4.5503]
[1733476229598,9.23815709,236.38,236.3,4.23854452]
[1733476229799,9.23815709,236.34,236.29,4.5503]
[1733476229996,2.1138,236.36,236.29,2.32]
[1733476230192,9.23815709,236.33,236.29,2.32]
[1733476230700,9.23815709,236.33,236.3,2.1143]
[1733476230895,9.23815709,236.38,236.29,2.32]
[1733476231697,9.23815709,236.38,236.32,2.1141]
[1733476231999,9.23815709,236.38,236.29,2.32]
[1733476232896,9.23815709,236.52,236.29,2.32]
[1733476233202,9.23815709,236.41,236.29,2.32]
[1733476233403,9.23815709,236.41,236.38,2.1135]
[1733476233606,9.23815709,236.41,236.39,2.32]
[1733476233796,2.32,236.51,236.39,2.32]
[1733476234001,9.23815709,236.43,236.39,2.32]
[1733476236603,9.23815709,236.43,236.39,4.4335]
[1733476237204,9.23815709,236.43,236.39,2.32]
[1733476238209,9.23815709,236.43,236.39,4.4335]
[1733476238409,9.23815709,236.43,236.39,2.32]
[1733476240817,9.23815709,236.43,236.4,2.1133]
[1733476241321,9.23815709,236.46,236.39,2.32]
[1733476241721,9.23815709,236.43,236.39,2.32]
[1733476242821,9.23815709,236.52,236.39,2.32]
[1733476243027,9.23815709,236.46,236.39,2.32]
[1733476243421,9.23815709,236.46,236.4,2.1134]
[1733476243623,9.23815709,236.46,236.39,2.32]
[1733476243817,9.23815709,236.49,236.39,2.32]
[1733476244017,2.1126,236.49,236.43,2.1131]
[1733476244223,9.23815709,236.5,236.39,2.32]
[1733476244523,9.23815709,236.5,236.4,4.19998717]
[1733476244524,11.35065709,236.5,236.4,4.19998717]
[1733476244725,2.38,236.57,236.39,2.32]
[1733476245025,9.23815709,236.5,236.39,2.32]
[1733476246326,2.1128,236.47,236.4,2.1133]
[1733476246526,2.1128,236.47,236.39,2.32]
[1733476246527,9.23815709,236.47,236.39,2.32]
[1733476246919,9.23815709,236.41,236.28,5.84295953]
[1733476247121,9.23815709,236.41,236.34,2.38]
[1733476248330,2.1135,236.4,236.34,2.38]
[1733476248625,2.1135,236.4,236.27,4.18102112]
[1733476248822,11.35145709,236.41,236.34,2.1139]
[1733476249022,2.38,236.54,236.35,2.38]
[1733476249331,9.23815709,236.46,236.35,2.38]
[1733476249633,2.1131,236.44,236.37,2.1137]
[1733476250630,9.23815709,236.46,236.35,2.38]
[1733476250828,2.1131,236.44,236.38,2.1136]
[1733476251129,9.23815709,236.46,236.35,2.38]
[1733476251325,9.23815709,236.46,236.41,2.1133]
[1733476251531,9.23815709,236.46,236.42,2.38]
[1733476252125,4.2238,236.58,236.42,2.38]
[1733476252126,9.23815709,236.49,236.42,2.38]
[1733476254038,9.23815709,236.49,236.44,2.1131]
[1733476254237,9.23815709,236.49,236.42,2.38]
[1733476254937,9.23815709,236.49,236.44,2.1131]
[1733476255934,4.2225,236.65,236.42,2.38]
[1733476256135,16.49104817,236.64,236.43,9.23815709]
[1733476256333,2.38,236.68,236.44,4.7234]
[1733476256334,9.23815709,236.58,236.44,4.7234]
[1733476256731,2.1118,236.59,236.46,9.23815709]
[1733476256937,9.23815709,236.61,236.46,9.23815709]
[1733476257136,9.23815709,236.61,236.56,2.112]
[1733476257338,9.23815709,236.64,236.57,2.38]
[1733476258235,9.23815709,236.64,236.57,4.4919]
[1733476259034,9.23815709,236.64,236.57,2.1119]
[1733476259239,9.23815709,236.64,236.58,2.38]
[1733476259440,2.1111,236.66,236.59,2.1117]
[1733476259842,9.23815709,236.67,236.58,2.38]
[1733476260538,9.23815709,236.67,236.6,2.1116]
[1733476260539,2.1111,236.66,236.6,2.1116]
[1733476260740,9.23815709,236.67,236.6,2.1116]
[1733476261136,32.3423906,236.7,236.61,2.1115]
[1733476261333,32.3423906,236.7,236.6,4.15350044]
[1733476261537,32.3423906,236.7,236.58,11.61815709]
[1733476261745,9.23815709,236.75,236.58,11.61815709]
[1733476261936,9.23815709,236.75,236.61,9.23815709]
[1733476262132,9.23815709,236.75,236.62,2.2909]
[1733476262335,11.34845709,236.75,236.67,2.111]
[1733476262538,11.34845709,236.75,236.68,2.38]
[1733476262739,9.23815709,236.75,236.68,2.38]
[1733476263139,9.23815709,236.72,236.62,2.2909]
[1733476263339,9.23815709,236.69,236.63,2.38]
[1733476263744,2.1109,236.68,236.63,2.38]
[1733476263940,9.23815709,236.69,236.63,2.38]
[1733476264443,9.23815709,236.72,236.63,2.38]
[1733476264840,9.23815709,236.72,236.66,2.1111]
[1733476266046,9.23815709,236.72,236.67,2.111]
[1733476268243,9.23815709,236.72,236.68,2.38]
[1733476268738,9.23815709,236.69,236.68,2.38]
[1733476270446,9.23815709,236.72,236.68,2.38]
[1733476271942,9.23815709,236.72,236.68,4.4908]
[1733476272951,9.23815709,236.72,236.7,2.1107]
[1733476273545,9.23815709,236.72,236.69,2.1108]
[1733476273947,9.23815709,236.75,236.7,2.1107]
[1733476274747,9.23815709,236.78,236.73,2.1104]
[1733476274944,9.23815709,236.78,236.74,2.28]
[1733476275251,9.23815709,236.78,236.75,2.28]
[1733476276253,2.1102,236.76,236.68,4.5257]
[1733476276455,9.23815709,236.75,236.69,2.28]
[1733476276655,9.23815709,236.75,236.7,2.1107]
[1733476276956,9.23815709,236.75,236.69,2.28]
[1733476278757,9.23815709,236.75,236.7,2.1107]
[1733476279056,9.23815709,236.75,236.68,4.5257]
[1733476279057,2.1105,236.73,236.71,2.28]
[1733476279258,9.23815709,236.75,236.71,2.28]
[1733476281858,2.1105,236.73,236.71,2.28]
[1733476282462,2.1104,236.74,236.71,2.28]
[1733476283558,9.23815709,236.72,236.68,2.2459]
[1733476283764,9.23815709,236.69,236.68,2.28]
[1733476284262,11.34905709,236.69,236.68,2.28]
[1733476284466,9.23815709,236.69,236.59,2.4149]
[1733476284665,9.23815709,236.76,236.6,2.28]
[1733476284666,9.23815709,236.66,236.6,2.28]
[1733476285061,9.23815709,236.66,236.6,4.3916]
[1733476286162,9.23815709,236.63,236.61,2.28]
[1733476287367,9.23815709,236.66,236.61,2.28]
[1733476288478,9.23815709,236.66,236.61,4.3915]
[1733476288662,34.32166541,236.75,236.61,2.28]
[1733476288663,9.23815709,236.69,236.61,2.28]
[1733476288868,9.23815709,236.69,236.63,2.1113]
[1733476289167,9.23815709,236.72,236.61,2.28]
[1733476289670,9.23815709,236.72,236.67,2.111]
[1733476289870,9.23815709,236.72,236.68,2.28]